Cogmind - Beta 12 X6 @@@ ROGUE MODE // 2023.02.20 @ 15:46:33 // Winter2019/RPGLIKE Player: ArabianSandBoa Result: Destroyed by 8R-AWN with 8R-AWN's Boregun Performance ------------- Evolutions (1) 500 Regions Visited (5) 1000 Robots Destroyed (118) 590 Value Destroyed (3477) 3477 Prototype IDs (34) 680 Alien Tech Used (0) 0 Bonus (449) 449 TOTAL SCORE: 6696 Bonus ------- High Alert Combat Kills 1152 Aligned with FarCom 300 Friendly Fire -1003 Cogmind --------- Core Integrity 0/600 Matter 40/300 Energy 430/460 System Corruption 22% Temperature Cool (0) Movement Treading (160) Location -9/Exiles Parts ------- > --- POWER (3) -------- Cooled Ion Engine Cooled Ion Engine > --- PROPULSION (3) --- Improved Treads Medium Treads > --- UTILITY (7) ------ Power Amplifier Experimental Sensor Array Improved Terrain Scanner Modified TNC Kinecellerator Remote Shield > --- WEAPON (3) ------- Heavy Ion Cannon Flak Gun > --- INVENTORY (2) ---- YI-UF0's Doublenader Field Lobotomy Kit (4) Peak State ------------ > --- POWER ------------ Cooled Ion Engine Cooled Ion Engine Cooled Ion Engine > --- PROPULSION ------- Improved Treads Improved Treads Medium Treads > --- UTILITY ---------- Power Amplifier Experimental Sensor Array Improved Terrain Scanner Modified TNC Kinecellerator Medium Armor Plating Remote Shield > --- WEAPON ----------- Heavy Ion Cannon Gauss Rifle Flak Gun > --- INVENTORY -------- YI-UF0's Doublenader Field Lobotomy Kit [Rating: 64] Favorites ----------- Power Cooled Ion Engine Engine Cooled Ion Engine Power Core Light Nuclear Core Propulsion Improved Treads Treads Improved Treads Wheel Wheel Utility Improved Terrain Scanner Device Improved Terrain Scanner Storage Medium Matter Pod Processor Modified TNC Hackware Hacking Suite Protection Light Armor Plating Weapon Heavy Assault Rifle Energy Gun EM Shotgun Energy Cannon Advanced Beam Cannon Ballistic Gun Heavy Assault Rifle Ballistic Cannon Improved Light Cannon Launcher YI-UF0's Doublenader Special Weapon Field Lobotomy Kit Build | -11 -10 -10 -9 -9 -9 ------- Run | Jun Mat Min Mat Min Exi Slots Evolved 12 | 4 3 . 4 1 . Power 2 | . . . 2 . . Propulsion 2 | 1 . . 1 . . Utility 6 | 2 2 . 1 1 . Weapon 2 | 1 1 . . . . Parts Attached 72 | 10 18 1 25 9 9 Power 9 | 1 . . 8 . . Engine 7 | 1 . . 6 . . Core 2 | . . . 2 . . Reactor . | . . . . . . Propulsion 9 | 4 2 . 2 1 . Treads 7 | 2 2 . 2 1 . Leg . | . . . . . . Wheel 2 | 2 . . . . . Hover . | . . . . . . Flight . | . . . . . . Utility 22 | 3 8 1 6 3 1 Device 11 | 2 3 1 3 2 . Storage 1 | 1 . . . . . Processor 1 | . . . . . 1 Hackware 1 | . 1 . . . . Protection 8 | . 4 . 3 1 . Artifact . | . . . . . . Weapon 32 | 2 8 . 9 5 8 Energy Gun 7 | . 3 . 4 . . Energy Cannon 5 | . . . 2 1 2 Ballistic Gun 13 | 2 3 . 2 3 3 Ballistic Cannon 1 | . . . 1 . . Launcher 4 | . 2 . . 1 1 Special Weapon 2 | . . . . . 2 Impact Weapon . | . . . . . . Slashing Weapon . | . . . . . . Piercing Weapon . | . . . . . . Special Melee Weapon . | . . . . . . Unidentified Prototypes 7 | . . 1 5 1 . Corrupted Parts 6 | . . . . 6 . System Corruption 21 | . . . . 21 . Parts Lost 1 | . . . . . 1 Power . | . . . . . . Propulsion . | . . . . . . Utility 1 | . . . . . 1 Weapon . | . . . . . . Highest Loss Streak 1 | . . . . . 1 To Critical Strikes . | . . . . . . Average Slot Usage (%) 98 | . 99 100 97 99 86 Engine 12 | . 10 9 14 18 16 Core 1 | . . . 4 . . Treads 16 | . 12 18 19 18 17 Wheel 2 | . 9 . . . . Device 26 | . 27 27 23 28 31 Hackware 5 | . 8 9 3 . . Protection 9 | . 9 9 9 14 8 Energy Gun 5 | . 11 . 6 2 . Energy Cannon 3 | . . . 7 5 2 Ballistic Gun 10 | . 7 27 5 6 3 Launcher 1 | . 2 . . 3 1 Naked Turns . | . . . . . . Heaviest Build 68 | 13 21 21 57 68 68 Greatest Support 74 | 40 46 46 69 74 74 Greatest Overweight (x) 2 | 2 . . . . . Average Overweight (x) . | . . . . . . Largest Inventory Capacity 2 | . 2 2 2 2 2 Average Capacity 1 | . . 2 2 2 2 Most Carried 2 | . 2 2 2 2 2 Average Carried 1 | . . 2 1 1 1 Final Capacity 2 | . 2 2 2 2 2 Final Carried 2 | . 2 2 2 2 2 Class Distribution -------------------- 51% | Skirmisher 23% | Mutant 9% | Scavenger-Skirmisher 7% | Scavenger-Tank 4% | Tank 3% | Scavenger-Mutant Dominant Class ---------------- Skirmisher | -10/Materials Skirmisher | -10/Mines Skirmisher | -9/Materials Scavenger-Skirmisher | -9/Mines Mutant | -9/Exiles Resources | -11 -10 -10 -9 -9 -9 ----------- Run | Jun Mat Min Mat Min Exi Matter Collected 2252 | 381 919 91 753 84 24 Remotely . | . . . . . . Salvage Created 3737 | 174 1369 11 2036 135 12 Parts 280 | 14 107 . 157 2 . Haulers Intercepted 7 | . 2 . 5 . . Recyclers Shooed 4 | 1 3 . . . . Parts Field Recycled . | . . . . . . Retrieved Matter . | . . . . . . Parts Self-Destructed . | . . . . . . Prevented . | . . . . . . Kills | -11 -10 -10 -9 -9 -9 ------- Run | Jun Mat Min Mat Min Exi Combat Hostiles Destroyed 92 | . 32 1 55 . 4 Melee 1 | . . . . . 1 Guns 70 | . 32 1 34 . 3 Cannons 19 | . . . 19 . . Classes Destroyed 16 | 3 6 1 5 . 1 Worker 7 | 2 2 . 3 . . Builder 5 | . 1 . 4 . . Tunneler 6 | 3 2 . 1 . . Hauler 7 | . 2 . 5 . . Recycler 5 | 1 2 . 2 . . Mechanic 1 | . . . 1 . . Operator 5 | . 3 . 2 . . Watcher 6 | . 2 . 4 . . Swarmer 17 | . 9 . 8 . . Grunt 56 | . 23 . 33 . . Brawler 2 | . . . 2 . . Duelist 2 | . . . 2 . . Protector 2 | . . . 2 . . Sentry 8 | . . . 8 . . Demolisher 1 | . . 1 . . . Assembled 4 | . . . . . 4 Best Kill Streak 9 | 6 5 1 9 . 2 Combat Bots Only 9 | . 5 1 9 . 2 Max Kills in Single Turn 3 | 1 2 1 3 1 1 Gunslinging 1 | . 1 . 1 . . Exploded . | . . . . . . Melee 1 | . . . . . 1 Uniques/NPCs Destroyed 1 | . . . . 1 . YI-UF0 (-9/Mines) Combat | -11 -10 -10 -9 -9 -9 -------- Run | Jun Mat Min Mat Min Exi Damage Taken 3713 | . 1216 147 1341 34 975 Core 2609 | . 844 115 931 23 696 Absorbed by Shields 914 | . 103 52 477 10 272 Redirected to Core 2270 | . 672 105 861 13 619 Core Remaining (%) 91 | 100 . 82 . . . Volleys Fired 414 | 11 160 9 208 11 15 Largest 3 | 2 2 3 3 3 3 Hottest 201 | 40 90 69 201 201 121 Shots Fired 934 | 22 300 27 528 26 31 Gun 665 | 22 280 27 301 10 25 Cannon 248 | . . . 227 16 5 Launcher 20 | . 20 . . . . Special 1 | . . . . . 1 Kinetic 427 | 22 188 27 159 6 25 Thermal 394 | . . . 369 20 5 Explosive 20 | . 20 . . . . Electromagnetic 92 | . 92 . . . . Robot Hit Streak 24 | 5 16 19 24 3 8 Robot Miss Streak 7 | 2 3 . 7 3 3 Penetration Max . | . . . . . . Secondary Targets 19 | . 8 . 10 . 1 Max Gunslinging Chain 1 | . 1 . 1 . 1 Shots Hit Robots 488 | 13 157 11 273 9 25 Core Hits 339 | 7 78 4 222 7 21 Critical Kills 2 | . . . 2 . . Critical Parts Destroyed . | . . . . . . Critical Strikes 2 | . . . 2 . . Meltdown 2 | . . . 2 . . Melee Attacks . | . . . . . . Impact . | . . . . . . Slashing . | . . . . . . Piercing . | . . . . . . Sneak Attacks . | . . . . . . Combat Hostiles . | . . . . . . Follow-up Attacks . | . . . . . . Damage Inflicted 8154 | 172 2288 179 4807 239 469 Guns 5717 | 172 2124 179 2757 35 450 Cannons 2154 | . . . 2007 142 5 Explosions 269 | . 164 . 43 62 . Melee . | . . . . . . Ramming 14 | . . . . . 14 Kinetic 3453 | 172 1220 179 1432 . 450 Thermal 3728 | . 109 . 3375 239 5 Explosive 55 | . 55 . . . . Electromagnetic 904 | . 904 . . . . Impact . | . . . . . . Slashing . | . . . . . . Piercing . | . . . . . . Highest Corruption 22 | . . . . 22 22 Average Corruption 18 | . . . . 15 22 Corruption Purged . | . . . . . . Corruption Blocked . | . . . . . . Effects 45 | . . . . 23 22 Message Errors 12 | . . . . 8 4 Matter Fused 12 | . . . . 7 5 Heat Flow Errors 4 | . . . . 2 2 Energy Discharges 6 | . . . . 3 3 Parts Rejected 3 | . . . . . 3 Data Loss (minor) 3 | . . . . 1 2 Data Loss (major) 2 | . . . . 2 . Misfires 1 | . . . . . 1 Misdirections 1 | . . . . . 1 Weapon Failures 1 | . . . . . 1 Overload Shots . | . . . . . . Overflow Damage 25 | . . . 25 . . Projectiles 25 | . . . 25 . . Explosions . | . . . . . . Melee . | . . . . . . Knockbacks 3 | . . . 3 . . Impact . | . . . . . . Kinetic 3 | . . . 3 . . Secondary . | . . . . . . Self-Inflicted Damage 247 | . 162 . 85 . . Shots 6 | . 5 . 1 . . Rammed 7 | . . . . . 7 Targets Rammed 8 | . . . . . 8 Kicked . | . . . . . . Crushed 1 | . . . . . 1 Highest Temperature 379 | . 193 . 379 182 215 Average Temperature 68 | . 40 . 83 53 115 Received Heat Transfer 1109 | . 476 . 466 28 139 Effects 1 | . . . 1 . . Short Circuit 1 | . . . 1 . . Siege Activations . | . . . . . . Robots Corrupted . | . . . . . . Combat Hostiles . | . . . . . . Parts Fried 1 | . 1 . . . . Impact Corruptions . | . . . . . . Robots Melted 2 | . . . 2 . . Combat Hostiles 2 | . . . 2 . . Parts Melted 9 | . . . 9 . . Heat Transferred 5191 | . 200 . 4724 249 18 Parts Sabotaged . | . . . . . . Parts Stolen . | . . . . . . Parts Stripped . | . . . . . . Power Chain Reactions 2 | . 2 . . . . Missiles Intercepted . | . . . . . . Alert | -11 -10 -10 -9 -9 -9 ------- Run | Jun Mat Min Mat Min Exi Peak Influence 1904 | 30 1092 475 1904 843 . Initial 742 | . 19 425 22 742 . Average 697 | 10 684 270 1004 683 . Maximum Alert Level 5 | . 3 2 5 3 . Low Security (%) 14 | 100 3 40 11 . . Level 1 14 | . 20 29 8 . . Level 2 25 | . 24 29 9 60 . Level 3 32 | . 51 . 31 39 . Level 4 5 | . . . 18 . . Level 5 6 | . . . 21 . . High Security . | . . . . . . Max Security . | . . . . . . Sterilizations 1 | . . . 1 . . Squads Dispatched 25 | . 12 . 13 . . Investigation 19 | . 9 . 10 . . Extermination . | . . . . . . Reinforcement 4 | . 3 . 1 . . Assault 2 | . . . 2 . . Garrison . | . . . . . . Intercept . | . . . . . . Searches Triggered . | . . . . . . Construction Impeded 1 | . . . 1 . . Haulers Reinforced . | . . . . . . Active Scanning Responses . | . . . . . . Cargo Convoy Interrupts . | . . . . . . Stealth | -11 -10 -10 -9 -9 -9 --------- Run | Jun Mat Min Mat Min Exi Distress Signals 6 | . 1 . 5 . . Communications Jammed . | . . . . . . Distress Signals . | . . . . . . Times Spotted 122 | . 43 2 67 1 9 Peak Tracking Total 9 | . 6 2 6 2 9 Tactical Retreats 4 | . 2 . 2 . . Traps | -11 -10 -10 -9 -9 -9 ------- Run | Jun Mat Min Mat Min Exi Traps Triggered 6 | . 2 . 3 1 . Indirectly . | . . . . . . Trap Hack Attempts . | . . . . . . Triggered . | . . . . . . Disarmed . | . . . . . . Reprogrammed . | . . . . . . Reused . | . . . . . . Traps Extracted . | . . . . . . Installed . | . . . . . . Triggered . | . . . . . . Most Traps Carried 2 | . . . . 2 . Machines | -11 -10 -10 -9 -9 -9 ---------- Run | Jun Mat Min Mat Min Exi Machines Disabled 76 | . 20 4 45 7 . Max in Single Turn 2 | . 1 1 2 2 . Machines Repaired 2 | . 2 . . . . Machines Sabotaged . | . . . . . . Overloaded Fab Kills . | . . . . . . Hacking | -11 -10 -10 -9 -9 -9 --------- Run | Jun Mat Min Mat Min Exi Machines Accessed 23 | . 8 . 13 1 1 Terminals 13 | . 5 . 8 . . Fabricators . | . . . . . . Repair Stations 3 | . 1 . 2 . . Recycling Units 4 | . 2 . 2 . . Scanalyzers 1 | . . . 1 . . Garrison Access . | . . . . . . Total Hacks 68 | . 23 . 43 1 1 Successful 40 | . 13 . 25 1 1 Failed 27 | . 10 . 17 . . Catastrophic 2 | . 2 . . . . Database Lockouts 1 | . . . 1 . . Manual 49 | . 19 . 29 . 1 Terminals 42 | . 16 . 26 . . Fabricators . | . . . . . . Repair Stations 15 | . 3 . 12 . . Recycling Units 8 | . 4 . 4 . . Scanalyzers 1 | . . . 1 . . Garrison Access . | . . . . . . Terminal Hacks 13 | . 2 . 9 1 1 Robot Analysis 3 | . 2 . 1 . . Prototype ID Bank 1 | . . . 1 . . Open Door 1 | . . . . 1 . Branch Access Points 1 | . . . 1 . . Locate Traps 1 | . . . 1 . . Hauler Manifests 2 | . . . 2 . . Registered Components 1 | . . . 1 . . Registered Prototypes 1 | . . . 1 . . Zone Layout 1 | . . . 1 . . EX-Prototype ID Bank 1 | . . . . . 1 Fabricator Hacks . | . . . . . . Repair Station Hacks 8 | . 1 . 7 . . Refit 8 | . 1 . 7 . . Recycling Unit Hacks 2 | . 2 . . . . Report Inventory 2 | . 2 . . . . Scanalyzer . | . . . . . . Garrison Access Hacks . | . . . . . . Unauthorized Hacks 17 | . 8 . 9 . . Terminals 12 | . 6 . 6 . . Botnet 2 | . 1 . 1 . . Detonate 2 | . 2 . . . . Sabotage 5 | . 3 . 2 . . Search 3 | . . . 3 . . Fabricators . | . . . . . . Repair Stations . | . . . . . . Recycling Units 4 | . 2 . 2 . . Tunnel 4 | . 2 . 2 . . Scanalyzers 1 | . . . 1 . . Extract 1 | . . . 1 . . Garrison Access . | . . . . . . Data Cores Recovered 1 | . . . 1 . . Used . | . . . . . . Hacking Detections 15 | . 6 . 9 . . Full Trace Events 7 | . 3 . 4 . . Feedback Events . | . . . . . . Feedback Blocked . | . . . . . . Robot Schematics Acquired . | . . . . . . Robots Built . | . . . . . . Authchips . | . . . . . . Time . | . . . . . . Total Robot Build Rating . | . . . . . . Part Schematics Acquired 28 | . . . 28 . . Parts Built . | . . . . . . Authchips . | . . . . . . Time . | . . . . . . Total Part Build Rating . | . . . . . . Parts Repaired . | . . . . . . Time . | . . . . . . Parts Recycled . | . . . . . . Recycled Matter . | . . . . . . Retrieved Matter . | . . . . . . Retrieved Components . | . . . . . . Parts Scanalyzed . | . . . . . . Part Schematics Acquired . | . . . . . . Parts Damaged . | . . . . . . Bothacking | -11 -10 -10 -9 -9 -9 ------------ Run | Jun Mat Min Mat Min Exi Used RIF Installer . | . . . . . . Robots Hacked . | . . . . . . Non-combat . | . . . . . . Combat . | . . . . . . Robot Hacks Applied . | . . . . . . Relay Couplers Released . | . . . . . . Fabnet Peak Effective % . | . . . . . . Robots Rewired . | . . . . . . Allies Hacked . | . . . . . . Hacks Repelled . | . . . . . . Allies | -11 -10 -10 -9 -9 -9 -------- Run | Jun Mat Min Mat Min Exi Total Allies 4 | . . . . 4 . Largest Group 4 | . . . . 4 4 Highest-Rated Group 71 | . . . . 71 71 Highest-Rated Ally 31 | . . . . 31 31 Total Orders . | . . . . . . Ally Attacks 10 | . . . . . 10 Total Damage 8 | . . . . . 8 Kills . | . . . . . . Allies Corrupted . | . . . . . . Allies Melted . | . . . . . . Intel | -11 -10 -10 -9 -9 -9 ------- Run | Jun Mat Min Mat Min Exi Robot Analysis Total 3 | . 2 . 1 . . Derelict Logs Recovered 5 | . . 3 . 2 . Drone Launches . | . . . . . . Drone Recoveries . | . . . . . . Exploration | -11 -10 -10 -9 -9 -9 ------------- Run | Jun Mat Min Mat Min Exi Turns Passed 7592 | 129 2376 1341 2306 1016 424 Spaces Moved 3576 | 76 1075 780 840 591 214 Core 6 | 6 . . . . . Treads 3190 | 12 753 780 840 591 214 Legs . | . . . . . . Wheels 380 | 58 322 . . . . Hover . | . . . . . . Flight . | . . . . . . Fastest Speed 50 | 50 80 160 160 160 160 Average Speed 151 | 100 136 160 160 160 160 Slowest Speed 160 | 160 160 160 160 160 160 Overloaded Moves . | . . . . . . Propulsion Burnouts . | . . . . . . Robots Hopped . | . . . . . . Cave-ins Triggered . | . . . . . . Exploration Rate (%) 70 | 4 99 99 84 95 41 Regions Visited 5 Branch Regions 3 Pre-discovered Areas 4 | . 2 . 2 . . Known Exits Taken 1 | . . . 1 . . Unknown Exits Taken 4 | 1 1 1 . 1 . Scrap Searched 3 | . . 1 . 2 . Spaces Dug 3 | . . . 3 . . Terrain Destroyed 275 | . 178 5 78 11 3 Melee . | . . . . . . Projectile 41 | . . . 36 2 3 AOE 234 | . 178 5 42 9 . Terrain Rammed . | . . . . . . Walls Destroyed . | . . . . . . Machines Disabled . | . . . . . . Actions | -11 -10 -10 -9 -9 -9 --------- Run | Jun Mat Min Mat Min Exi Total 4934 | 102 1690 853 1386 640 263 Wait 652 | 4 360 61 213 14 . Move 3571 | 75 1074 779 839 590 214 Hop . | . . . . . . Pick Up 15 | . 6 . 4 4 1 Fast Attach 57 | 10 11 1 21 6 8 Attach 7 | . 2 . 4 . 1 Detach 6 | . 2 . 2 . 2 Swap 8 | . 5 . . 3 . Drop 53 | 2 14 1 17 10 9 Fire 414 | 11 160 9 208 11 15 Melee . | . . . . . . Ram . | . . . . . . Kick . | . . . . . . Crush 8 | . . . . . 8 Escape Stasis . | . . . . . . Rewire . | . . . . . . Trap . | . . . . . . Miscellaneous 143 | . 56 2 78 2 5 Route ------- -11/Junkyard -10/Materials (discovered 5 exits: *Mat x3 / [*Min x2]) -10/Mines (discovered 2 exits: *Mat x2) -9/Materials (discovered 3 exits: *Mat x2 / *Min) -9/Mines (discovered 3 exits: *Mat x2 / *Exi) -9/Exiles (discovered 1 exit: Min) History --------- Turn | Location | Event 4 | -11/Junkyard | Upgraded with Propulsion slot (x1) 4 | -11/Junkyard | Upgraded with Utility slot (x2) 4 | -11/Junkyard | Upgraded with Weapon slot (x1) 17 | -11/Junkyard | Discovered new exit (range 15) 130 | -11/Junkyard | Entered Materials 549 | -10/Materials | Build established: Skirmisher 583 | -10/Materials | Reached level 2 586 | -10/Materials | Upgraded with Utility slot (x1) 694 | -10/Materials | Core integrity fell below 50% 885 | -10/Materials | Build established: Mutant 957 | -10/Materials | Discovered new exit (range 13) 999 | -10/Materials | Reached level 3 1008 | -10/Materials | Upgraded with Utility slot (x1) 1054 | -10/Materials | Discovered new exit (range 11) 1241 | -10/Materials | Discovered new exit (range 12) 1324 | -10/Materials | Build established: Skirmisher 1326 | -10/Materials | Reached level 4 1412 | -10/Materials | Discovered new exit (range 12) 1924 | -10/Materials | Reached level 5 1993 | -10/Materials | Discovered new exit (range 8) 2069 | -10/Materials | Build established: Mutant 2302 | -10/Materials | Upgraded with Weapon slot (x1) 2506 | -10/Materials | Entered Mines 2567 | -10/Mines | Discovered new exit (range 12) 2569 | -10/Mines | Found a damaged Exp. Sensor Array with a note attached 2573 | -10/Mines | Found Prototype Device 2573 | -10/Mines | Identified Exp. Sensor Array 2641 | -10/Mines | Assembled infested the area 2647 | -10/Mines | Discovered new exit (range 10) 2708 | -10/Mines | Build established: Skirmisher 3362 | -10/Mines | Learned location of 1 exit from Materials 3847 | -10/Mines | Entered Materials 3848 | -9/Materials | Identified exit to Mines 3849 | -9/Materials | Identified exit to Materials 3849 | -9/Materials | Reached level 6 3859 | -9/Materials | Upgraded with Power slot (x2) 3970 | -9/Materials | Reached level 7 4167 | -9/Materials | Upgraded with Propulsion slot (x1) 4205 | -9/Materials | Reached level 8 4420 | -9/Materials | Destroyed 9 combat bots 4448 | -9/Materials | Reached level 9 4647 | -9/Materials | First assault squad dispatched 4999 | -9/Materials | Upgraded with Utility slot (x1) 5039 | -9/Materials | Discovered exit to Materials (range 17) 5316 | -9/Materials | Reached level 10 5349 | -9/Materials | Central database locked down 5453 | -9/Materials | Build established: Scavenger-Tank 5704 | -9/Materials | Sterilization system engaged 5704 | -9/Materials | Non-combat units ordered to evacuate 5804 | -9/Materials | Combat units ordered to evacuate 6004 | -9/Materials | Ambient heat levels rising (+10) 6153 | -9/Materials | Entered Mines 6155 | -9/Mines | Reached level 11 6178 | -9/Mines | Upgraded with Utility slot (x1) 6234 | -9/Mines | Found a hidden stash of uninstalled traps 6261 | -9/Mines | Joined a pair of Derelicts in attacking an 0b10 outpost 6380 | -9/Mines | Build established: Skirmisher 6462 | -9/Mines | Escorted by a lone wolf Derelict 6510 | -9/Mines | YI-UF0 nonchalantly dropped a Grenade Launcher on the ground 6521 | -9/Mines | Destroyed YI-UF0 6531 | -9/Mines | Found Prototype Launcher 6531 | -9/Mines | Identified YI-UF0's Doublenader 6619 | -9/Mines | Discovered exit to Materials (range 9) 6636 | -9/Mines | Met a Derelict who couldn't figure out how to use a Trap Extractor 6647 | -9/Mines | System corruption reached 10% 6799 | -9/Mines | Learned 8 Materials zone layouts 6799 | -9/Mines | Discovered exit to Materials (range 11) 6811 | -9/Mines | Discovered new exit (range 13) 6813 | -9/Mines | Build established: Scavenger-Skirmisher 6825 | -9/Mines | Deemed a non-threat by the Exiles lab entrance 6862 | -9/Mines | Learned Materials machine intel 7021 | -9/Mines | Assisted by bots powering up and referring to "LRC-V3" 7169 | -9/Mines | Entered Exiles 7169 | -9/Exiles | Accompanied by 4 allies 7170 | -9/Exiles | Identified exit to Mines 7211 | -9/Exiles | Met 8R-AWN 7249 | -9/Exiles | Met EX-HEX 7292 | -9/Exiles | Met EX-BIN 7311 | -9/Exiles | Aligned with FarCom system 7313 | -9/Exiles | Given EX-Vault access code 7350 | -9/Exiles | Opened EX-Vault 7361 | -9/Exiles | Found Field Lobotomy Kit 7366 | -9/Exiles | Found Modified TNC 7401 | -9/Exiles | Warned to stay clear of 0b10 Research branches 7483 | -9/Exiles | Attacked by the Exiles 7522 | -9/Exiles | Core integrity fell below 50% 7546 | -9/Exiles | Core integrity fell below 20% 7593 | -9/Exiles | Destroyed by 8R-AWN with 8R-AWN's Boregun Last Messages --------------- 07579_ Used Protomatter to restore core integrity (+12, depleted) 07580_ Penetrated by HV Slug. 07580_ HV Slug penetrates Machine. 07580_ Penetrated by HV Slug. 07580_ HV Slug penetrates Machine. 07582_ Acquired 12 matter. 07584_ Slammed into 8R-AWN. 07585_ Penetrated by HV Slug. 07585_ HV Slug penetrates Wall. 07585_ Penetrated by HV Slug. 07585_ HV Slug penetrates Wall. 07585_ Slammed into 8R-AWN. 07589_ System corrupted: Gauss Rifle rejected. 07589_ Penetrated by HV Slug. 07589_ HV Slug penetrates Earth. 07589_ HV Slug penetrates Machine. 07589_ HV Slug penetrates Wall. 07590_ Slammed into 8R-AWN. 07593_ HV Slug penetrates Wall. 07593_ Penetrated by HV Slug. Map ----- +----------------------------------------------------+ | """## ?""#????????????????????????????????? | | """## """??##?????????????????????????????? | | """""" ?#?#??????????????????????????????? | | """#####?#????????????????????????????????? | | "X" """""? ???#?#????????????????????????????? | | """ # """##?#?#??????#?##???#??????????????? | | """""""""# """#?##?##???##?###??#???#???????????? | | ########### """#######?##??###?#?#?#?#???????????? | | #####?##########################?##?###?#???##???? | | ##?#######################################??#????? | | #####?###############?#######??#?####?######??#??? | | #####################################?#######???? | | #####"""""""""###############################??# | | """ """"################?###?####?#?##### | | " ################################ | | """################################ | | " "################################ | | " "#############" ####?########### | | ###########" ######?#####?### | | ""#########" ##?###?######## | | "######## % ############## | | #" ## ### !!%= ########## | | #" * #####*%[=%! #""""## | | ##"""" % ;## % % * | | ##"" g % ## * | | #"" @% #### | | " [ ###"""""#### | | = # ################ | | ##;;##############?###### | | ###############?########### | | " ;#########################?? | | "" "#################?##?##?#### | | ?"" " " # "##########?#############?#### | | ??## """##"" " #####################?######?# | | ???###""""######;;#########################??##### | | ???########## ## ##################?###?########## | | ????#?#?#?##### #################?#?#??###??###?# | | ?????#?##??### #####################???######?### | | ????##################?#############??###??####?## | | ???????##?##??###?######?#######??#????##?#?####?# | | ?????#####?#?###?#########?#??##???????##???###### | | ?????##?????##?###?######?#??#?#?????????????##?## | | ??????#?#?#?#####?###?#?#?###?#?????????????###??# | | ???????#??#?###?##?##??##??????????????????????#?? | | ????????##?#??##?#?#########????????????????????#? | | ??????????#####??########??#?????????????????????? | | ???????????###?#??######?????????????????????????? | | ?????????????#?#??###?#??????????????????????????? | | ??????????????????#??????????????????????????????? | | ?????????????????????????????????????????????????? | +----------------------------------------------------+ Best States ------------- Heat Dissipation 83 Energy Generation 47 Energy Capacity 640 Matter Stores 330 Matter Capacity 400 Sight Range 17 Robot Scan Range 22 Terrain Scan Range 16 Terrain Scan Density 310 Power Amplification 20 Armor Coverage 600 Resistance: KI 5 Resistance: TH 5 Evasion (%) 44 Recoil Reduction 3 Kinecelleration 30 Offensive Hacking 10 Defensive Hacking 5 Item Schematics ----------------- Imp. Ion Engine | -9/Materials | Extracted Imp. Hover Unit | -9/Materials | Extracted Shield Generator | -9/Materials | Extracted Imp. Targeting Computer | -9/Materials | Extracted Sensor Array | -9/Materials | Extracted Hvy. EM Pulse Gun | -9/Materials | Extracted Structural Scanner | -9/Materials | Extracted Particle Gun | -9/Materials | Extracted Particle Cannon | -9/Materials | Extracted Lgt. Ion Engine | -9/Materials | Extracted Plasma Cutter | -9/Materials | Extracted Weight Redist. System | -9/Materials | Extracted Terrain Scan Processor | -9/Materials | Extracted Lgt. Cannon | -9/Materials | Extracted Lgt. Assault Rifle | -9/Materials | Extracted Signal Interpreter | -9/Materials | Extracted Arm. Wheel | -9/Materials | Extracted Imp. Flight Unit | -9/Materials | Extracted ECM Suite | -9/Materials | Extracted Lrg. Matter Pod | -9/Materials | Extracted Imp. Aluminum Leg | -9/Materials | Extracted Tractor Beam | -9/Materials | Extracted Ion Engine | -9/Materials | Extracted Hvy. Assault Rifle | -9/Materials | Extracted Cooling System | -9/Materials | Extracted Autogun | -9/Materials | Extracted Lgt. Armor Plating | -9/Materials | Extracted Spread Laser | -9/Materials | Extracted Robot Schematics ------------------ None Fabricated ------------ Nothing Alien Tech Used ----------------- None Achievements -------------- None Challenges ------------ None RPGLIKE | -11 -10 -10 -9 -9 -9 --------- Run | Jun Mat Min Mat Min Exi Levels Raised 10 | . 4 . 5 1 . XP Earned 18195 | 3000 6403 665 7767 280 80 XP Spent 17880 | 2970 6020 . 6740 2150 . Upgrades 39 | 8 14 . 15 2 . Power Slot 2 | . . . 2 . . Propulsion Slot 2 | 1 . . 1 . . Utility Slot 6 | 2 2 . 1 1 . Weapon Slot 2 | 1 1 . . . . Heat Dissipation 8 | . 2 . 6 . . Energy Generation 2 | . 2 . . . . Inventory Capacity 2 | . 2 . . . . Sight Range 1 | . 1 . . . . Sensor Range 1 | . 1 . . . . Terrain Scan Density 3 | 3 . . . . . Ranged Accuracy 2 | 1 1 . . . . Hack Attack % 2 | . . . 2 . . Hack Defense % 1 | . . . 1 . . KI Resistance % 1 | . 1 . . . . TH Resistance % 1 | . . . . 1 . TH Damage % 3 | . 1 . 2 . . Protomatter Created 1097 | . 377 . 705 . 15 Integrity Restored 2702 | . 1045 33 1499 35 90 Core 1998 | . 820 33 1037 18 90 Parts 704 | . 225 . 462 17 . Protomatter Decayed 271 | . 36 5 195 35 . Game ------ Seed SmartbombSegregatorPod Manual? 0 Play Time 00:57:30 Cumulative 345.4 hours Start 2023.02.20 @ 01:00:41 End 2023.02.20 @ 15:46:33 Sessions 2 Manual Loads 0 Difficulty Rogue Special Mode Winter2019/RPGLIKE Game No. 410 Rogue 410 Adventurer 0 Explorer 0 Win Type - Total 0 Types 0/0/0/0/0/0/0/0/0 Lore% 50 Gallery% 73 Achievement% 61 Wizard Run 0 Options --------- ASCII 0 Keyboard 0 Movement Mouse Keybinds 0 Fullscreen 2 Font 24/Smallcaps Map View 76x50 Tactical HUD 1 Map Filters NONE Filters NONE Steam 1 RUN: 212b4e75-11f2-44f5-a598-3c4ce7f8688b